[Event "WTCC-50 2018"]
[Site "Radebeul"]
[Date "2018.07.13"]
[Round "7"]
[White "Chan, Peng Kong"]
[Black "Van den Bersselaar, Jeroen"]
[Result "1/2-1/2"]
[ECO "A20"]
[WhiteElo "2158"]
[BlackElo "2142"]
[Annotator "NA"]
[PlyCount "33"]
[EventDate "2018.07.07"]
[EventType "team-tourn"]
[EventCountry "GER"]
[SourceTitle "playchess.com"]
[Source "ChessBase"]
[SourceQuality "1"]
[TimeControl "40/5400+30:1800+30"]

1. c4 {[%emt 0:00:00]} e5 {[%emt 0:00:00]} 2. g3 {[%emt 0:00:00]} c6 {[%emt 0:00:13]} 3. d4 {[%emt 0:01:12]} e4 {[%emt 0:00:26]} 4. Nc3 {[%emt 0:02:01]} d5 {[%emt 0:00:28]} 5. Bg2 {[%emt 0:03:30]} Nf6 {[%emt 0:00:56]} 6. Bg5 {[%emt 0:02:42]} Nbd7 {[%emt 0:01:01]} 7. cxd5 {[%emt 0:05:44]} cxd5 {[%emt 0:00:08]} 8. f3 {[%emt 0:01:08]} Qa5 {[%emt 0:19:54]} 9. a3 {[%emt 0:13:20]} h6 {[%emt 0:06:20]} 10. Bxf6 {[%emt 0:03:52]} Nxf6 {[%emt 0:00:07]} 11. Nh3 {[%emt 0:06:21]} exf3 {[%emt 0:08:15]} 12. exf3 {[%emt 0:00:11]} Bd6 {[%emt 0:00:13]} 13. O-O {[%emt 0:00:38]} O-O {[%emt 0:00:31]} 14. Qd2 {[%emt 0:00:30]} Bxh3 {[%emt 0:10:46]} 15. Bxh3 {[%emt 0:00:10]} Rae8 {[%emt 0:00:14]} 16. Rfe1 {[%emt 0:00:18]} a6 {[%emt 0:01:28]} 17. Bf5 {[%emt 0:02:12]} 1/2-1/2

[Event "WTCC-50 2018"]
[Site "Radebeul"]
[Date "2018.07.13"]
[Round "7"]
[White "Page, Mark E"]
[Black "Schultz, Andreas"]
[Result "1-0"]
[ECO "C01"]
[WhiteElo "2139"]
[BlackElo "2211"]
[Annotator "NA"]
[PlyCount "93"]
[EventDate "2018.07.07"]
[EventType "team-tourn"]
[EventCountry "GER"]
[SourceTitle "playchess.com"]
[Source "ChessBase"]
[SourceQuality "1"]
[TimeControl "40/5400+30:1800+30"]

1. e4 {[%emt 0:00:00]} e6 {[%emt 0:00:00]} 2. d4 {[%emt 0:00:00]} d5 {[%emt 0:00:00]} 3. exd5 {[%emt 0:00:00]} exd5 {[%emt 0:00:00]} 4. Nf3 {[%emt 0:00:00]} Nf6 {[%emt 0:00:00]} 5. Bd3 {[%emt 0:00:10]} c5 {[%emt 0:00:01] LiveBook: 119 Partien} 6. O-O {[%emt 0:02:33]} c4 {[%emt 0:00:18]} 7. Re1+ {[%emt 0:00:25]} Be7 {[%emt 0:00:10]} 8. Bf1 {[%emt 0:01:24]} O-O {[%emt 0:00:31] C01: French: Exchange Variation} 9. b3 {[%emt 0:00:56]} (9. Bg5) 9... cxb3 {[%emt 0:01:43]} 10. axb3 {[%emt 0:00:08]} Bg4 {[%emt 0:01:24]} 11. h3 {[%emt 0:12:24]} Bh5 {[%emt 0:00:14]} 12. g4 {[%emt 0:07:57]} Bg6 {[%emt 0:00:47]} 13. Ne5 {[%emt 0:01:57]} Nc6 {[%emt 0:11:47]} 14. Nxg6 $146 {[%emt 0:07:35]} ({Predecessor:} 14. Bg2 Re8 15. Bb2 a6 16. Nd2 {0-1 (66) Peng,L (2320)-Razin,V (2379) Lutsk 2018}) 14... hxg6 {[%emt 0:04:05]} 15. Bg2 {[%emt 0:06:21]} Rc8 {[%emt 0:12:51]} 16. Ba3 {[%emt 0:14:07]} Re8 {[%emt 0:06:35]} 17. c3 {[%emt 0:08:36]} a6 {[%emt 0:06:20]} 18. Bxe7 {[%emt 0:09:39]} Rxe7 {[%emt 0:01:42]} 19. Nd2 {[%emt 0:02:26]} Rxe1+ {[%emt 0:02:38]} 20. Qxe1 {[%emt 0:00:09]} Qd6 {[%emt 0:00:31]} 21. Qe3 {[%emt 0:04:35]} Re8 {[%emt 0:03:54]} 22. Qf3 {[%emt 0:02:12]} Qe6 {[%emt 0:01:21]} 23. Rb1 {[%emt 0:06:59]} Re7 {[%emt 0:10:46]} 24. g5 {[%emt 0:03:13]} Ne4 {[%emt 0:15:08]} 25. Nxe4 {[%emt 0:00:41]} dxe4 {[%emt 0:00:54]} 26. Qe3 {[%emt 0:00:22]} f5 {[%emt 0:06:26]} 27. gxf6 {[%emt 0:01:54]} gxf6 {[%emt 0:00:07]} 28. Bf1 {[%emt 0:00:28]} Kh7 {[%emt 0:01:31]} 29. c4 {[%emt 0:00:27]} Qf5 {[%emt 0:03:41]} 30. Be2 {[%emt 0:02:54]} g5 {[%emt 0:00:13]} 31. b4 {[%emt 0:00:36]} Qg6 {[%emt 0:00:44]} 32. b5 {[%emt 0:00:10]} axb5 {[%emt 0:00:08]} 33. cxb5 {[%emt 0:00:29]} Nd8 {[%emt 0:00:38]} 34. Re1 {[%emt 0:03:05]} Rd7 {[%emt 0:02:33]} 35. f3 {[%emt 0:01:35]} f5 {[%emt 0:04:13]} 36. fxe4 {[%emt 0:00:06]} f4 {[%emt 0:00:34]} 37. Qc3 {[%emt 0:00:15]} Qd6 {[%emt 0:01:32]} 38. Rd1 {[%emt 0:00:28]} Ne6 {[%emt 0:00:35]} 39. d5 {[%emt 0:01:24]} Qb6+ {[%emt 0:01:16]} 40. Kg2 {[%emt 0:00:30]} f3+ {[%emt 0:00:21]} 41. Qxf3 {[%emt 0:05:46]} Nf4+ {[%emt 0:01:51]} 42. Kh1 {[%emt 0:02:38]} Rd6 {[%emt 0:02:14]} 43. e5 {[%emt 0:04:51]} Rh6 {[%emt 0:03:29]} 44. Bf1 {[%emt 0:00:13]} Qc5 $18 {[%emt 0:08:14]} 45. d6 {[%emt 0:08:11]} Qxe5 {[%emt 0:00:38]} 46. d7 {[%emt 0:00:17]} Rd6 {[%emt 0:04:24]} 47. d8=Q 1-0

[Event "WTCC-50 2018"]
[Site "Radebeul"]
[Date "2018.07.13"]
[Round "7"]
[White "Barron, Michael"]
[Black "Arkell, Keith C"]
[Result "0-1"]
[ECO "B17"]
[WhiteElo "2123"]
[BlackElo "2406"]
[Annotator "NA"]
[PlyCount "114"]
[EventDate "2018.07.07"]
[EventType "team-tourn"]
[EventCountry "GER"]
[SourceTitle "playchess.com"]
[Source "ChessBase"]
[SourceQuality "1"]
[TimeControl "40/5400+30:1800+30"]

1. e4 {[%emt 0:00:00]} c6 {[%emt 0:00:03]} 2. d4 {[%emt 0:00:01]} d5 {[%emt 0:00:06]} 3. Nd2 {[%emt 0:00:07]} dxe4 {[%emt 0:00:06]} 4. Nxe4 {[%emt 0:00:06]} Nd7 {[%emt 0:00:04]} 5. Nf3 {[%emt 0:00:14]} Ngf6 {[%emt 0:00:05]} 6. Nxf6+ {[%emt 0:00:10]} Nxf6 {[%emt 0:00:06]} 7. Bc4 {[%emt 0:00:10]} Bf5 {[%emt 0:00:07]} 8. O-O {[%emt 0:02:15]} e6 {[%emt 0:00:05]} 9. c3 {[%emt 0:00:11]} Be7 {[%emt 0:00:07]} 10. Bd3 {[%emt 0:00:51]} Bxd3 {[%emt 0:00:07]} 11. Qxd3 {[%emt 0:00:02]} O-O {[%emt 0:00:06]} 12. Bg5 {[%emt 0:00:50]} h6 {[%emt 0:00:54]} 13. Bh4 {[%emt 0:01:36]} c5 {[%emt 0:01:30]} 14. Rad1 {[%emt 0:00:13]} Qb6 {[%emt 0:00:40]} 15. Qe2 {[%emt 0:00:48]} Rfd8 {[%emt 0:01:59]} 16. Bg3 {[%emt 0:00:14]} Rac8 {[%emt 0:03:28]} 17. Be5 {[%emt 0:00:12]} a6 {[%emt 0:02:22]} 18. h3 {[%emt 0:02:34]} Qc6 {[%emt 0:01:35]} 19. Rfe1 {[%emt 0:02:30]} b5 {[%emt 0:00:23]} 20. dxc5 {[%emt 0:01:34]} Qxc5 {[%emt 0:00:18]} 21. Bd4 {[%emt 0:02:15]} Qc7 {[%emt 0:02:47]} 22. Ne5 {[%emt 0:00:50]} Bc5 {[%emt 0:04:13]} 23. Bxc5 {[%emt 0:02:54]} Qxc5 {[%emt 0:00:14]} 24. Rd3 {[%emt 0:00:58]} Rxd3 {[%emt 0:01:29]} 25. Nxd3 {[%emt 0:02:49]} Qc4 {[%emt 0:00:27]} 26. Nb4 {[%emt 0:04:08]} Qxe2 {[%emt 0:01:19]} 27. Rxe2 {[%emt 0:00:03]} a5 {[%emt 0:00:08]} 28. Nd3 {[%emt 0:00:16]} Nd5 {[%emt 0:03:17]} 29. f4 {[%emt 0:00:46]} Rd8 {[%emt 0:00:37]} 30. f5 {[%emt 0:03:02]} Ne7 {[%emt 0:05:36]} 31. Ne5 {[%emt 0:03:01]} Nxf5 {[%emt 0:00:24]} 32. Nc6 {[%emt 0:00:23]} Rd1+ {[%emt 0:02:20]} 33. Kf2 {[%emt 0:00:15]} a4 {[%emt 0:00:32]} 34. Re5 {[%emt 0:05:19]} Nd6 {[%emt 0:03:18]} 35. Nd4 {[%emt 0:01:31]} Rb1 {[%emt 0:05:25]} 36. b3 {[%emt 0:01:54]} Rc1 {[%emt 0:06:21]} 37. Nxb5 {[%emt 0:05:48]} Rc2+ {[%emt 0:01:57]} 38. Ke3 {[%emt 0:08:00]} Nxb5 {[%emt 0:03:03]} 39. Rxb5 {[%emt 0:00:02]} Rxc3+ {[%emt 0:00:48]} 40. Kd4 {[%emt 0:00:01]} Rc2 {[%emt 0:00:55]} 41. Ra5 {[%emt 0:31:35]} axb3 {[%emt 0:30:19]} 42. axb3 {[%emt 0:00:02]} Rxg2 {[%emt 0:00:12]} 43. b4 {[%emt 0:00:21]} f5 {[%emt 0:13:29]} 44. b5 {[%emt 0:03:18]} f4 {[%emt 0:01:23]} 45. b6 {[%emt 0:15:49]} Rb2 {[%emt 0:00:10]} 46. Kc5 {[%emt 0:00:03]} f3 {[%emt 0:00:21]} 47. Ra8+ {[%emt 0:00:05]} Kf7 {[%emt 0:00:46]} 48. Ra3 {[%emt 0:02:02]} f2 {[%emt 0:00:27]} 49. Rf3+ {[%emt 0:00:23]} Ke7 {[%emt 0:00:22]} 50. Kc6 {[%emt 0:00:15]} Rc2+ {[%emt 0:01:07]} 51. Kb5 {[%emt 0:00:14]} e5 {[%emt 0:01:01]} 52. b7 {[%emt 0:00:36]} e4 {[%emt 0:03:02]} 53. Rf4 {[%emt 0:00:05]} e3 {[%emt 0:02:39]} 54. b8=Q {[%emt 0:02:46]} Rb2+ {[%emt 0:00:44]} 55. Rb4 {[%emt 0:00:05]} f1=Q+ {[%emt 0:00:10]} 56. Kc6 {[%emt 0:00:55]} Qc1+ {[%emt 0:02:44]} 57. Kd5 {[%emt 0:00:16]} Qd2+ {[%emt 0:00:25]} 0-1

[Event "WTCC-50 2018"]
[Site "Radebeul"]
[Date "2018.07.13"]
[Round "7"]
[White "Tolhuizen, Ludo"]
[Black "Goh, Cheng Hong"]
[Result "1/2-1/2"]
[ECO "B06"]
[WhiteElo "2118"]
[BlackElo "2323"]
[Annotator "NA"]
[PlyCount "29"]
[EventDate "2018.07.07"]
[EventType "team-tourn"]
[EventCountry "GER"]
[SourceTitle "playchess.com"]
[Source "ChessBase"]
[SourceQuality "1"]
[TimeControl "40/5400+30:1800+30"]

1. d4 {[%emt 0:00:00]} g6 {[%emt 0:00:14]} 2. e4 {[%emt 0:00:00]} Bg7 {[%emt 0:00:05]} 3. Nc3 {[%emt 0:00:00]} c5 {[%emt 0:00:21]} 4. d5 {[%emt 0:00:40]} d6 {[%emt 0:00:11]} 5. Bb5+ {[%emt 0:00:12]} Bd7 {[%emt 0:00:14]} 6. a4 {[%emt 0:00:05]} Nf6 {[%emt 0:00:38]} 7. Nf3 {[%emt 0:00:12]} O-O {[%emt 0:00:18]} 8. O-O {[%emt 0:00:05]} Na6 {[%emt 0:00:45]} 9. Re1 {[%emt 0:00:28]} Nc7 {[%emt 0:03:07]} 10. Bf1 {[%emt 0:00:10]} e5 {[%emt 0:01:34]} 11. dxe6 {[%emt 0:08:12]} Bxe6 {[%emt 0:00:02]} 12. Bf4 {[%emt 0:00:36]} Nfe8 {[%emt 0:04:06]} 13. Qd2 {[%emt 0:04:37]} d5 {[%emt 0:12:56]} 14. exd5 {[%emt 0:11:01]} Nxd5 {[%emt 0:04:57]} 15. Nxd5 1/2-1/2

[Event "WTCC-50 2018"]
[Site "Radebeul"]
[Date "2018.07.13"]
[Round "7"]
[White "Scheckenbach, Franz"]
[Black "Kaster, Juergen"]
[Result "1/2-1/2"]
[ECO "B00"]
[WhiteElo "2106"]
[BlackElo "2117"]
[Annotator "NA"]
[PlyCount "84"]
[EventDate "2018.07.07"]
[EventType "team-tourn"]
[EventCountry "GER"]
[SourceTitle "playchess.com"]
[Source "ChessBase"]
[SourceQuality "1"]
[TimeControl "40/5400+30:1800+30"]

1. e4 {[%emt 0:00:00]} d6 {[%emt 0:01:14]} 2. d4 {[%emt 0:00:00]} e5 {[%emt 0:01:21]} 3. Nf3 {[%emt 0:00:35]} Nc6 {[%emt 0:01:32]} 4. h3 {[%emt 0:04:11]} Be7 {[%emt 0:02:30]} 5. Bc4 {[%emt 0:01:17]} Nf6 {[%emt 0:01:22]} 6. Nc3 {[%emt 0:02:40]} O-O {[%emt 0:00:57]} 7. O-O {[%emt 0:00:55]} Nxe4 {[%emt 0:04:20]} 8. Nxe4 {[%emt 0:01:24]} d5 {[%emt 0:00:43]} 9. Nc3 {[%emt 0:10:57]} dxc4 {[%emt 0:00:50]} 10. d5 {[%emt 0:02:38]} Na5 {[%emt 0:05:03]} 11. Nxe5 {[%emt 0:02:47]} Bd6 {[%emt 0:02:15]} 12. Qd4 {[%emt 0:08:52]} Bxe5 {[%emt 0:03:28]} 13. Qxe5 {[%emt 0:00:11]} Re8 {[%emt 0:01:40]} 14. Qg3 {[%emt 0:06:21]} c6 {[%emt 0:12:35]} 15. Bf4 {[%emt 0:03:09]} Qf6 {[%emt 0:10:16]} 16. dxc6 {[%emt 0:07:43]} bxc6 {[%emt 0:11:47]} 17. Rad1 {[%emt 0:02:00]} Bf5 {[%emt 0:06:34]} 18. Rd6 {[%emt 0:04:26]} Re6 {[%emt 0:02:13]} 19. Rd2 {[%emt 0:03:30]} Rae8 {[%emt 0:02:50]} 20. Be3 {[%emt 0:01:31]} a6 {[%emt 0:08:27]} 21. Rfd1 {[%emt 0:12:28]} Qg6 {[%emt 0:02:39]} 22. Qxg6 {[%emt 0:00:55]} Bxg6 {[%emt 0:04:05]} 23. Bb6 {[%emt 0:02:29]} Nb7 {[%emt 0:03:18]} 24. Rd7 {[%emt 0:03:34]} R6e7 {[%emt 0:00:39]} 25. R1d2 {[%emt 0:03:54]} Bf5 {[%emt 0:01:02]} 26. Rxe7 {[%emt 0:00:56]} Rxe7 {[%emt 0:00:02]} 27. g4 {[%emt 0:01:17]} Be6 {[%emt 0:01:37]} 28. Kg2 {[%emt 0:02:43]} Rd7 {[%emt 0:00:42]} 29. Rxd7 {[%emt 0:00:54]} Bxd7 {[%emt 0:00:02]} 30. Kf3 {[%emt 0:00:38]} h5 {[%emt 0:01:06]} 31. Kf4 {[%emt 0:00:58]} f6 {[%emt 0:00:40]} 32. f3 {[%emt 0:01:10]} h4 {[%emt 0:02:25]} 33. Ne4 {[%emt 0:01:06]} Kf7 {[%emt 0:01:44]} 34. c3 {[%emt 0:04:21]} Ke6 {[%emt 0:00:30]} 35. Nc5+ {[%emt 0:01:42]} Nxc5 {[%emt 0:00:09]} 36. Bxc5 {[%emt 0:00:05]} Kd5 {[%emt 0:00:46]} 37. Bf8 {[%emt 0:00:41]} g6 {[%emt 0:01:28]} 38. Bg7 {[%emt 0:00:39]} Ke6 {[%emt 0:00:12]} 39. Bf8 {[%emt 0:01:20]} Kd5 {[%emt 0:00:01]} 40. Be7 {[%emt 0:01:00]} Ke6 {[%emt 0:01:59]} 41. Bd8 {[%emt 0:30:22]} Kf7 {[%emt 0:06:48]} 42. Ke3 {[%emt 0:00:00]} Ke8 1/2-1/2

[Event "WTCC-50 2018"]
[Site "Radebeul"]
[Date "2018.07.13"]
[Round "7"]
[White "Haentsch, Ralf"]
[Black "Dietze, Frank"]
[Result "0-1"]
[ECO "B26"]
[WhiteElo "2085"]
[BlackElo "2203"]
[Annotator "NA"]
[PlyCount "131"]
[EventDate "2018.07.07"]
[EventType "team-tourn"]
[EventCountry "GER"]
[SourceTitle "playchess.com"]
[Source "ChessBase"]
[SourceQuality "1"]
[TimeControl "40/5400+30:1800+30"]

1. e4 {[%emt 0:00:00]} c5 {[%emt 0:00:00]} 2. Nc3 {[%emt 0:00:03]} Nc6 {[%emt 0:00:00]} 3. g3 {[%emt 0:00:30]} g6 {[%emt 0:00:43]} 4. Bg2 {[%emt 0:00:18]} Bg7 {[%emt 0:00:19]} 5. d3 {[%emt 0:00:28]} d6 {[%emt 0:01:53]} 6. Be3 {[%emt 0:00:32]} e5 {[%emt 0:00:27]} 7. Qd2 {[%emt 0:01:35]} Nge7 {[%emt 0:00:23]} 8. Bh6 {[%emt 0:02:33]} Bxh6 {[%emt 0:00:06]} 9. Qxh6 {[%emt 0:00:02]} Nd4 {[%emt 0:00:06]} 10. Qd2 {[%emt 0:05:10]} Be6 {[%emt 0:00:06]} 11. Nd1 {[%emt 0:03:35] B26: Closed Sicilian: 3 g3, lines with early Be3} (11. Nd5 Nxd5 12. exd5 Bd7 13. c3 Nf5 14. Nf3 O-O 15. h4 h5 16. Ng5 b5 17. Ne4 Kg7 18. f3 Rh8 {0-1 (82) Krapivin,A (2500)-Sjugirov,S (2612) St Petersburg 2009}) 11... d5 {[%emt 0:02:39]} 12. c3 {[%emt 0:05:14]} Ndc6 {[%emt 0:00:39]} 13. Nf3 $146 {[%emt 0:10:35]} ({Predecessor:} 13. Qc2 Rb8 14. Ne2 Qd7 15. h3 O-O 16. f3 b5 17. Nf2 b4 18. O-O Rb7 {½-½ (53) Egreteau,E (2084)-Romain,X (1892) Avoine 2008}) 13... f6 {[%emt 0:04:37]} 14. Qe2 {[%emt 0:09:03]} Qd7 {[%emt 0:08:41]} 15. Nd2 {[%emt 0:06:46]} O-O-O {[%emt 0:01:56]} 16. b3 {[%emt 0:07:08]} f5 {[%emt 0:05:45]} 17. f3 {[%emt 0:06:42]} h5 {[%emt 0:05:11]} 18. h3 {[%emt 0:05:55]} g5 {[%emt 0:05:33]} 19. Nf2 {[%emt 0:01:47]} fxe4 {[%emt 0:08:15]} 20. fxe4 {[%emt 0:09:19]} d4 {[%emt 0:00:48]} 21. c4 {[%emt 0:01:25]} Rdg8 {[%emt 0:05:41]} 22. Bf3 {[%emt 0:05:16]} Nb4 {[%emt 0:01:33]} 23. Kd1 {[%emt 0:02:27]} g4 {[%emt 0:04:43]} 24. hxg4 {[%emt 0:01:19]} hxg4 {[%emt 0:00:02]} 25. Bg2 {[%emt 0:05:12]} Rxh1+ {[%emt 0:02:53]} 26. Bxh1 {[%emt 0:00:02]} Ng6 {[%emt 0:06:47]} 27. a3 {[%emt 0:00:27]} Nc6 {[%emt 0:00:03]} 28. Kc2 {[%emt 0:00:43]} Nf8 {[%emt 0:01:07]} 29. Bg2 {[%emt 0:00:29]} Qd8 {[%emt 0:00:22]} 30. Rh1 {[%emt 0:01:58]} Qa5 {[%emt 0:00:51]} 31. Nb1 {[%emt 0:00:28]} b5 {[%emt 0:01:39]} 32. Kb2 {[%emt 0:02:57]} bxc4 {[%emt 0:02:50]} 33. dxc4 {[%emt 0:01:50]} Qb6 {[%emt 0:02:34]} 34. Qc2 {[%emt 0:01:08]} Na5 {[%emt 0:04:16]} 35. Nd2 {[%emt 0:00:11]} Bf7 {[%emt 0:02:02]} 36. Bf1 {[%emt 0:00:30]} Qf6 {[%emt 0:01:16]} 37. Rh2 {[%emt 0:01:47]} Nd7 {[%emt 0:03:22]} 38. Be2 {[%emt 0:00:20]} Be6 {[%emt 0:00:14]} 39. Qd1 {[%emt 0:00:59]} Qg5 {[%emt 0:00:50]} 40. Rh4 {[%emt 0:02:13]} Qe3 {[%emt 0:00:33]} 41. Bxg4 {[%emt 0:09:07]} Qc3+ {[%emt 0:01:39]} 42. Ka2 {[%emt 0:02:43]} Bxg4 {[%emt 0:02:40]} 43. Rxg4 {[%emt 0:02:00]} Rf8 {[%emt 0:10:50]} 44. Nh3 {[%emt 0:03:01]} Qd3 {[%emt 0:00:10]} 45. Qc1 {[%emt 0:04:20]} Nf6 {[%emt 0:01:37]} 46. Rg5 {[%emt 0:01:56]} Nxe4 {[%emt 0:01:17]} 47. Rxe5 {[%emt 0:00:33]} Nxd2 {[%emt 0:05:33]} 48. Rxc5+ {[%emt 0:01:58]} Nc6 {[%emt 0:00:09]} 49. Nf4 $2 {[%emt 0:02:15]} (49. Qd1) 49... Qxb3+ {[%emt 0:07:17]} 50. Ka1 {[%emt 0:00:02]} Qb6 {[%emt 0:00:25]} 51. Rxc6+ {[%emt 0:02:02]} Qxc6 {[%emt 0:00:13]} 52. Qxd2 {[%emt 0:00:21]} Qxc4 {[%emt 0:00:00]} 53. Kb2 {[%emt 0:03:09]} Rf7 {[%emt 0:02:03]} 54. Qc2 $19 {[%emt 0:01:05]} Rb7+ {[%emt 0:00:56]} 55. Kc1 {[%emt 0:00:15]} Rc7 {[%emt 0:00:02]} 56. Qxc4 {[%emt 0:00:10]} Rxc4+ {[%emt 0:00:01]} 57. Kb2 {[%emt 0:00:46]} Rc3 {[%emt 0:00:40]} 58. Ne2 {[%emt 0:00:28]} Rd3 {[%emt 0:00:08]} 59. Kc2 {[%emt 0:00:28]} Rxa3 {[%emt 0:00:16]} 60. Kd2 {[%emt 0:00:33]} a5 {[%emt 0:01:20]} 61. g4 {[%emt 0:00:17]} Ra2+ {[%emt 0:00:11]} 62. Kd3 {[%emt 0:00:46]} Rxe2 {[%emt 0:00:01]} 63. Kxe2 {[%emt 0:00:09]} a4 {[%emt 0:00:02]} 64. g5 {[%emt 0:00:33]} Kd7 {[%emt 0:00:12]} 65. Kd3 {[%emt 0:01:10]} a3 66. Kxd4 0-1

[Event "WTCC-50 2018"]
[Site "Radebeul"]
[Date "2018.07.13"]
[Round "7"]
[White "Nazarenus, Olaf"]
[Black "Rohrmueller, Ulrich"]
[Result "0-1"]
[ECO "A46"]
[WhiteElo "2082"]
[BlackElo "2205"]
[Annotator "NA"]
[PlyCount "86"]
[EventDate "2018.07.07"]
[EventType "team-tourn"]
[EventCountry "GER"]
[SourceTitle "playchess.com"]
[Source "ChessBase"]
[SourceQuality "1"]
[TimeControl "40/5400+30:1800+30"]

1. d4 {[%emt 0:00:00]} e6 {[%emt 0:00:00]} 2. Nf3 {[%emt 0:00:01]} Nf6 {[%emt 0:00:00]} 3. e3 {[%emt 0:00:45]} b6 {[%emt 0:00:12]} 4. b3 {[%emt 0:00:59]} Bb7 {[%emt 0:00:12]} 5. Bb2 {[%emt 0:00:13]} c5 {[%emt 0:00:42]} 6. Nbd2 {[%emt 0:01:37]} Nc6 {[%emt 0:00:57]} 7. Rc1 {[%emt 0:12:00]} cxd4 {[%emt 0:06:45]} 8. exd4 {[%emt 0:02:43]} Be7 {[%emt 0:00:21]} 9. c4 {[%emt 0:00:19]} O-O {[%emt 0:01:59]} 10. Bd3 {[%emt 0:00:09]} d5 {[%emt 0:01:32]} 11. O-O {[%emt 0:01:20]} Rc8 {[%emt 0:00:14]} 12. Bb1 {[%emt 0:03:57]} Re8 {[%emt 0:03:24]} 13. Ne5 {[%emt 0:07:50]} dxc4 {[%emt 0:06:29]} 14. Ndxc4 {[%emt 0:08:26]} Nb4 {[%emt 0:04:12]} 15. f4 {[%emt 0:15:54]} b5 16. Ne3 {[%emt 0:02:22]} Rxc1 {[%emt 0:16:39]} 17. Bxc1 {[%emt 0:01:36]} Nbd5 {[%emt 0:01:05]} 18. N3g4 Nxg4 {[%emt 0:03:17]} 19. Qxg4 {[%emt 0:22:19]} f5 {[%emt 0:00:23]} 20. Qh5 {[%emt 0:03:12]} Rf8 {[%emt 0:00:13]} 21. Qf3 {[%emt 0:01:25]} Ba8 {[%emt 0:03:21]} 22. Qd3 {[%emt 0:01:44]} a6 {[%emt 0:01:44]} 23. Bd2 {[%emt 0:00:41]} Nf6 {[%emt 0:01:07]} 24. a4 {[%emt 0:03:03]} Qd5 25. Nf3 {[%emt 0:01:04]} Rc8 {[%emt 0:09:00]} 26. axb5 {[%emt 0:02:04]} axb5 {[%emt 0:00:18]} 27. Qe2 {[%emt 0:01:41]} Ne4 {[%emt 0:01:58]} 28. b4 {[%emt 0:04:59]} Bf6 {[%emt 0:05:25]} 29. Rd1 {[%emt 0:01:15]} Qb3 {[%emt 0:03:15]} 30. Bd3 {[%emt 0:00:45]} Bd5 {[%emt 0:02:21]} 31. Bxb5 {[%emt 0:00:13]} Nxd2 {[%emt 0:00:58]} 32. Rxd2 {[%emt 0:00:18]} Rc1+ {[%emt 0:04:52]} 33. Kf2 {[%emt 0:00:07]} Qxb4 {[%emt 0:00:20]} 34. Bd7 {[%emt 0:01:01]} Qd6 35. Qb5 {[%emt 0:00:44]} Bxf3 {[%emt 0:09:12]} 36. Kxf3 {[%emt 0:00:04]} h6 {[%emt 0:00:19]} 37. d5 {[%emt 0:00:21]} Rc3+ {[%emt 0:00:47]} 38. Ke2 {[%emt 0:01:09]} Qxf4 {[%emt 0:01:07]} 39. Bxe6+ {[%emt 0:00:27]} Kh7 {[%emt 0:00:06]} 40. Kd1 {[%emt 0:00:16]} Bg5 {[%emt 0:01:14]} 41. Qe2 {[%emt 0:03:39]} Qa4+ {[%emt 0:04:17]} 42. Ke1 {[%emt 0:00:14]} Bxd2+ {[%emt 0:00:09]} 43. Qxd2 {[%emt 0:00:07]} Qe4+ 0-1